fUSD/lending_fUSD_20251029
["ID","MTS","AMOUNT","RATE_DAILY","PERIOD"]
[392623241,1761753687340,-314.51,0.00013781,2]
[392623242,1761753688461,-420.31375021,0.00013781,2]
[392623243,1761753690207,-225.17599833,0.00013781,2]
[392623244,1761753691636,-192.12201954,0.00013781,2]
[392623246,1761753708187,-473.14297785,0.00013781,2]
[392623247,1761753710220,-176.76762604,0.00013781,2]
[392623248,1761753711899,-230.73462432,0.00013781,2]
[392623249,1761753716211,-219.74158203,0.00013781,2]
[392623250,1761753717534,-10000.0,0.00013781,2]
[392623251,1761753720215,-250.0432859,0.00013781,2]
[392623252,1761753723747,-187.18743939,0.00013781,2]
[392623253,1761753728680,-220.92639014,0.00013781,2]
[392623255,1761753730860,-246.72079936,0.00013781,2]
[392623256,1761753732689,-300.0,0.00013781,2]
[392623257,1761753734834,-300.0,0.00013781,2]
[392623259,1761753753218,-286.18613804,0.00013781,2]
[392623261,1761753755721,-157.04511741,0.00013781,2]
[392623262,1761753757230,-166.63373821,0.00013781,2]
[392623263,1761753760443,-349.1354839,0.0001378,2]
[392623264,1761753763908,-166.66666668,0.0001378,2]
[392623265,1761753783073,-199.22908831,0.0001378,2]
[392623266,1761753786560,-164.56674478,0.0001378,2]
[392623267,1761753788219,-300.0,0.0001378,2]
[392623268,1761753801090,500.0,0.00028661,120]
[392623269,1761753801445,500.0,0.00030694,120]
[392623270,1761753813166,-20.40201633,0.0001378,2]
[392623271,1761753813192,-159.66198224,0.0001378,2]
[392623272,1761753815891,-140.33801776,0.0001378,2]
[392623273,1761753815915,-50.91335121,0.00013781,2]
[392623274,1761753817490,-212.73947532,0.00013781,2]
[392623275,1761753819149,-272.87895329,0.00013781,2]
[392623276,1761753823859,-346.40128441,0.00013781,2]
[392623277,1761753826057,-270.82269366,0.00013781,2]
[392623280,1761753841579,-500.0,0.00013781,2]
[392623281,1761753843175,-184.51152619,0.0001378,2]
[392623282,1761753843314,-115.48847381,0.0001378,2]
[392623283,1761753843336,-384.51152619,0.00013781,2]
[392623284,1761753845343,-191.08,0.00013781,2]
[392623285,1761753845444,-500.0,0.00013781,2]
[392623286,1761753847196,-500.0,0.00013781,2]
[392623287,1761753847997,-323.09818595,0.00013781,2]
[392623288,1761753849127,-500.0,0.00013781,2]
[392623289,1761753849638,-162.85116113,0.00013781,2]
[392623290,1761753850634,-500.0,0.00013781,2]
[392623291,1761753851250,-181.47555507,0.00013781,2]
[392623292,1761753852058,-500.0,0.00013781,2]
[392623293,1761753852815,-193.79490688,0.00013781,2]
[392623295,1761753854559,-500.0,0.00013781,2]
[392623296,1761753855816,-250.0,0.00013781,2]
[392623297,1761753857928,-234.38713141,0.00013781,2]
[392623298,1761753862791,-198.46971435,0.00013781,2]
[392623299,1761753864263,-185.7570653,0.00013781,2]
[392623300,1761753866014,-302.54651434,0.00013781,2]
[392623301,1761753869532,-306.15661679,0.00013781,2]
[392623302,1761753871437,-156.62103444,0.00013781,2]
[392623303,1761753888148,-171.28,0.00013781,2]
[392623304,1761753889702,-300.0,0.00013781,2]
[392623307,1761753908174,2000.0,0.00031,120]
[392623308,1761753908217,1000.0,0.00013469,2]
[392623309,1761753908418,2000.0,0.00031,120]
[392623310,1761753908714,2000.0,0.00031,120]
[392623311,1761753908975,-382.38501788,0.0001378,2]
[392623312,1761753913600,179.714,0.00013488,2]
[392623313,1761753913904,150.0,0.00013488,2]
[392623314,1761753914006,150.0,0.00013488,2]
[392623315,1761753914434,-280.7340171,0.0001378,2]
[392623316,1761753917713,-500.0,0.0001378,2]
[392623317,1761753919220,-36.88096502,0.0001378,2]
[392623318,1761753919245,-136.90659233,0.00013781,2]
[392623319,1761753919911,150.0,0.00013488,2]
[392623320,1761753919953,150.0,0.00013488,2]
[392623323,1761753920862,154.47723844,0.00013488,2]
[392623324,1761753921159,150.0,0.00013488,2]
[392623325,1761753921455,-261.33590252,0.00013781,2]
[392623327,1761753924085,-204.61316794,0.00013781,2]
[392623328,1761753927461,-160.70315708,0.00013781,2]
[392623329,1761753927486,-66.07145735,0.00013781,2]
[392623330,1761753928015,150.0,0.00013488,2]
[392623331,1761753928707,-526.7130113,0.00013781,2]
[392623332,1761753928818,157.02041754,0.00013488,2]
[392623333,1761753930306,-376.92363135,0.00013781,2]
[392623334,1761753930340,-76.62636865,0.00013781,2]
[392623335,1761753931849,-330.34537092,0.00013781,2]
[392623336,1761753933165,150.0,0.00013488,2]
[392623337,1761753933311,228.66231237,0.00013488,2]
[392623338,1761753934527,-229.38630279,0.00013781,2]
[392623339,1761753935445,156.6900257,0.00013488,2]
[392623340,1761753949213,-282.53318606,0.00013781,2]
[392623341,1761753978039,-170.41672645,0.00013781,2]
[392623342,1761753978064,-72.15840268,0.00013781,2]
[392623343,1761753992125,-8.9503689,0.00013781,2]
[392623344,1761753992152,-166.66,0.00013836,2]
[392623345,1761753992177,-1586.0063,0.00013928,2]
[392623346,1761753992203,-300.0,0.00013943,2]
[392623347,1761753992229,-300.0,0.00013943,2]
[392623348,1761753992254,-150.0,0.00013943,2]
[392623349,1761753992280,-289.0,0.00013943,2]
[392623350,1761753992305,-1000.0,0.00013944,2]
[392623351,1761753992331,-30928.1943,0.00013944,2]
[392623352,1761753992356,-506.4,0.0001395,2]
[392623353,1761753992384,-166.66,0.00013973,2]
[392623354,1761753992410,-3324.62,0.00013999,2]
[392623355,1761753992435,-500.0,0.00014011,2]
[392623356,1761753992460,-1011.74166162,0.00014018,2]
[392623357,1761753992485,-200.0,0.0001402,2]
[392623358,1761753992514,-151.0,0.0001402,2]
[392623359,1761753992541,-607.21212119,0.0001402,2]
[392623360,1761753992569,-151.0,0.0001402,2]
[392623361,1761753992597,-151.0,0.0001402,2]
[392623362,1761753992626,-151.0,0.0001402,2]
[392623363,1761753992654,-151.0,0.0001402,2]
[392623364,1761753992686,-151.0,0.0001402,2]
[392623365,1761753992713,-500.0,0.0001402,2]
[392623366,1761753992739,-449.33228507,0.0001402,2]
[392623367,1761753992767,-151.0,0.0001402,2]
[392623368,1761753992799,-151.0,0.0001402,2]
[392623369,1761753992827,-151.0,0.0001402,2]
[392623370,1761753992853,-151.0,0.0001402,2]
[392623371,1761753992883,-151.0,0.0001402,2]
[392623372,1761753992910,-151.0,0.0001402,2]
[392623373,1761753992937,-151.0,0.0001402,2]
[392623374,1761753992968,-151.0,0.0001402,2]
[392623375,1761753992996,-151.0,0.0001402,2]
[392623376,1761753993023,-151.0,0.0001402,2]
[392623377,1761753993051,-151.0,0.0001402,2]
[392623378,1761753993227,-151.0,0.0001402,2]
[392623379,1761753993256,-151.0,0.0001402,2]
[392623380,1761753993284,-151.0,0.0001402,2]
[392623381,1761753993311,-200.0,0.0001402,2]
[392623382,1761753993337,-151.0,0.0001402,2]
[392623383,1761753993371,-151.0,0.0001402,2]
[392623384,1761753993398,-151.0,0.0001402,2]
[392623385,1761753993426,-151.0,0.0001402,2]
[392623386,1761753993453,-151.0,0.0001402,2]
[392623387,1761753993481,-151.0,0.0001402,2]
[392623388,1761753993510,-151.0,0.0001402,2]
[392623389,1761753993540,-151.0,0.0001402,2]
[392623390,1761753993571,-151.0,0.0001402,2]
[392623391,1761753993600,-151.0,0.0001402,2]
[392623392,1761753993630,-151.0,0.0001402,2]
[392623393,1761753993657,-151.0,0.0001402,2]
[392623394,1761753993686,-151.0,0.0001402,2]
[392623395,1761753993716,-151.0,0.0001402,2]
[392623396,1761753993743,-151.0,0.0001402,2]
[392623397,1761753993772,-151.0,0.0001402,2]
[392623398,1761753993801,-151.0,0.0001402,2]
[392623399,1761753993829,-151.0,0.0001402,2]
[392623400,1761753993867,-151.0,0.0001402,2]
[392623401,1761753993898,-151.0,0.0001402,2]
[392623402,1761753993926,-151.0,0.0001402,2]
[392623403,1761753993956,-151.0,0.0001402,2]
[392623404,1761753993983,-151.0,0.0001402,2]
[392623405,1761753994011,-151.0,0.0001402,2]
[392623406,1761753994039,-151.0,0.0001402,2]
[392623407,1761753994067,-151.0,0.0001402,2]
[392623408,1761753994094,-151.0,0.0001402,2]
[392623409,1761753994122,-151.0,0.0001402,2]
[392623410,1761753994149,-151.0,0.0001402,2]
[392623411,1761753994175,-151.0,0.0001402,2]
[392623412,1761753994202,-151.0,0.0001402,2]
[392623413,1761753994246,-104.22296322,0.0001402,2]
[392623414,1761753995506,-95.77703678,0.0001402,2]
[392623415,1761753995535,-69.39920708,0.00014026,2]
[392623416,1761753996060,-430.60079292,0.00014026,2]
[392623417,1761753996092,-298.31238578,0.00014026,2]
[392623418,1761753996118,-2050.45779052,0.00014027,2]
[392623419,1761753996143,-462.32359262,0.00014027,2]
[392623420,1761753996171,-335.87472988,0.00014027,2]
[392623421,1761753996197,-9999.99,0.00014028,2]
[392623422,1761753996222,-7837.3,0.00014028,2]
[392623423,1761753996247,-10372.03,0.00014028,2]
[392623424,1761753996272,-9999.99,0.00014028,2]
[392623425,1761753996296,-8213.12070828,0.00014028,2]
[392623426,1761753996471,-2376.06929172,0.00014028,2]
[392623427,1761753996497,-9999.99,0.00014028,2]
[392623428,1761753996524,-150.99,0.00014028,2]
[392623429,1761753996550,-9056.76,0.00014028,2]
[392623430,1761753996576,-344.23,0.00014028,2]
[392623431,1761753996601,-3649.9,0.00014028,2]
[392623432,1761753996628,-24422.06070828,0.00014028,2]
[392623433,1761753997096,-27612.83929172,0.00014028,2]
[392623434,1761753997125,-22387.16070828,0.00014044,2]
[392623435,1761753997496,-5271.15929172,0.00014044,2]
[392623436,1761753997524,-1179.85,0.0001408,2]
[392623437,1761753997553,-166.66,0.0001411,2]
[392623438,1761753997579,-578.20924308,0.00014168,2]
[392623439,1761753997607,-500.0,0.00014168,2]
[392623440,1761753997634,-574.12855637,0.00014168,2]
[392623441,1761753997662,-500.0,0.00014168,2]
[392623442,1761753997688,-500.0,0.00014168,2]
[392623443,1761753997715,-500.0,0.00014168,2]
[392623444,1761753997742,-500.0,0.00014168,2]
[392623445,1761753997768,-500.0,0.00014168,2]
[392623446,1761753997798,-500.0,0.00014168,2]
[392623447,1761753997826,-500.0,0.00014168,2]
[392623448,1761753997854,-500.0,0.00014168,2]
[392623449,1761753997889,-500.0,0.00014168,2]
[392623450,1761753997917,-500.0,0.00014168,2]
[392623451,1761753997944,-500.0,0.00014168,2]
[392623452,1761753997971,-500.0,0.00014168,2]
[392623453,1761753997999,-500.0,0.00014168,2]
[392623454,1761753998027,-500.0,0.00014168,2]
[392623455,1761753998055,-500.0,0.00014168,2]
[392623456,1761753998083,-500.0,0.00014168,2]
[392623457,1761753998115,-500.0,0.00014168,2]
[392623458,1761753998148,-500.0,0.00014168,2]
[392623459,1761753998187,-500.0,0.00014168,2]
[392623460,1761753998216,-500.0,0.00014168,2]
[392623461,1761753998244,-500.0,0.00014168,2]
[392623462,1761753998272,-500.0,0.00014168,2]
[392623463,1761753998299,-500.0,0.00014168,2]
[392623464,1761753998328,-500.0,0.00014168,2]
[392623465,1761753998357,-500.0,0.00014168,2]
[392623466,1761753998390,-500.0,0.00014168,2]
[392623467,1761753998420,-500.0,0.00014168,2]
[392623468,1761753998450,-500.0,0.00014168,2]
[392623469,1761753998479,-500.0,0.00014168,2]
[392623470,1761753998509,-500.0,0.00014168,2]
[392623471,1761753998538,-500.0,0.00014168,2]
[392623472,1761753998568,-500.0,0.00014168,2]
[392623473,1761753998596,-620.0,0.00014168,2]
[392623474,1761753998628,-277.35679052,0.00014168,2]
[392623475,1761753998656,-1740.0525,0.00014202,2]
[392623476,1761753998685,-1155.91587241,0.00014211,2]
[392623477,1761753998714,-166.66,0.00014247,2]
[392623478,1761753998743,-977.92,0.00014301,2]
[392623479,1761753998774,-20792.0877459,0.00014302,2]
[392623480,1761753999020,-11019.6523541,0.00014302,2]
[392623481,1761753999047,-165.34,0.0001432,2]
[392623482,1761753999078,-166.66,0.00014384,2]
[392623483,1761753999106,-892.67338722,0.00014607,2]
[392623484,1761753999134,-221.53471527,0.00014685,2]
[392623485,1761753999161,-595.37131296,0.00014716,2]
[392623486,1761753999349,-642.94,0.00014716,2]
[392623487,1761753999376,-151.0,0.00014794,2]
[392623488,1761753999402,-151.0,0.00014794,2]
[392623489,1761753999429,-151.0,0.00014794,2]
[392623490,1761753999455,-151.0,0.00014794,2]
[392623491,1761753999483,-151.0,0.00014794,2]
[392623492,1761753999508,-151.0,0.00014794,2]
[392623493,1761753999533,-151.0,0.00014794,2]
[392623494,1761753999561,-151.0,0.00014794,2]
[392623495,1761753999586,-151.0,0.00014794,2]
[392623496,1761753999612,-282.679329,0.00014794,2]
[392623497,1761753999656,-151.0,0.00014794,2]
[392623498,1761753999685,-151.0,0.00014794,2]
[392623499,1761753999713,-151.0,0.00014794,2]
[392623500,1761753999742,-151.0,0.00014794,2]
[392623501,1761753999770,-151.0,0.00014794,2]
[392623502,1761753999800,-151.0,0.00014794,2]
[392623503,1761753999828,-151.0,0.00014794,2]
[392623504,1761753999858,-151.0,0.00014794,2]
[392623505,1761753999888,-151.0,0.00014794,2]
[392623506,1761753999921,-151.0,0.00014794,2]
[392623507,1761753999950,-151.0,0.00014794,2]
[392623508,1761753999977,-151.0,0.00014794,2]
[392623509,1761754000014,-151.0,0.00014794,2]
[392623510,1761754000043,-659.204276,0.00014794,2]
[392623511,1761754000071,-659.204276,0.00014794,2]
[392623512,1761754000104,-659.204276,0.00014794,2]
[392623513,1761754000134,-659.204276,0.00014794,2]
[392623514,1761754000162,-151.0,0.00014794,2]
[392623515,1761754000190,-2065.3129,0.000148,2]
[392623516,1761754000218,-200.0,0.0001488,2]
[392623517,1761754000247,-162.85864398,0.00014899,2]
[392623518,1761754000276,-387.0205839,0.000149,2]
[392623519,1761754000303,-260.965,0.000149,2]
[392623520,1761754000334,-151.0,0.000149,2]
[392623521,1761754000362,-151.0,0.000149,2]
[392623522,1761754000390,-151.0,0.000149,2]
[392623523,1761754000420,-462.173378,0.000149,2]
[392623524,1761754000448,-462.173378,0.000149,2]
[392623525,1761754000476,-462.173378,0.000149,2]
[392623526,1761754000504,-462.173378,0.000149,2]
[392623527,1761754000531,-151.0,0.000149,2]
[392623528,1761754000559,-151.0,0.000149,2]
[392623529,1761754000591,-271.846906,0.000149,2]
[392623530,1761754000620,-151.0,0.000149,2]
[392623531,1761754000649,-151.0,0.000149,2]
[392623532,1761754000675,-153.035891,0.000149,2]
[392623533,1761754000705,-151.0,0.000149,2]
[392623534,1761754000734,-151.0,0.000149,2]
[392623535,1761754000763,-151.0,0.000149,2]
[392623536,1761754000794,-194.234144,0.000149,2]
[392623537,1761754000825,-304.35710302,0.000149,2]
[392623538,1761754000852,-168.41143416,0.000149,2]
[392623539,1761754000880,-174.28192475,0.000149,2]
[392623540,1761754000910,-3801.57,0.00014932,2]
[392623541,1761754000936,-175.75,0.00014948,2]
[392623542,1761754000963,-151.0,0.00014959,2]
[392623543,1761754000990,-151.0,0.00014959,2]
[392623544,1761754001018,-154.172899,0.00014959,2]
[392623545,1761754001044,-151.0,0.00014959,2]
[392623546,1761754001075,-157.218322,0.00014959,2]
[392623547,1761754001102,-158.89289,0.00014959,2]
[392623548,1761754001129,-151.0,0.00014959,2]
[392623549,1761754001156,-154.753346,0.00014959,2]
[392623550,1761754001183,-153.657073,0.00014959,2]
[392623551,1761754001210,-151.0,0.00014959,2]
[392623552,1761754001236,-165.1930955,0.00014973,2]
[392623553,1761754001266,-500.0,0.00014973,2]
[392623554,1761754001292,-500.0,0.00014973,2]
[392623555,1761754001317,-500.0,0.00014973,2]
[392623556,1761754001344,-500.0,0.00014973,2]
[392623557,1761754001372,-500.0,0.00014973,2]
[392623558,1761754001399,-500.0,0.00014973,2]
[392623559,1761754001424,-500.0,0.00014973,2]
[392623560,1761754001450,-154.28212609,0.00014985,2]
[392623561,1761754001476,-208.55538238,0.00014986,2]
[392623562,1761754001502,-154.35941027,0.00014986,2]
[392623563,1761754001528,-6460.7517149,0.0001499,2]
[392623564,1761754001554,-1095.01,0.00014991,2]
[392623565,1761754001580,-166.571214,0.00014994,2]
[392623566,1761754001606,-151.0,0.00014994,2]
[392623567,1761754001634,-151.0,0.00014994,2]
[392623568,1761754001661,-151.0,0.00014994,2]
[392623569,1761754001686,-151.0,0.00014994,2]
[392623570,1761754001713,-151.0,0.00014994,2]
[392623571,1761754001740,-151.0,0.00014994,2]
[392623572,1761754001766,-154.194433,0.00014994,2]
[392623573,1761754001800,-151.0,0.00014994,2]
[392623574,1761754001829,-151.0,0.00014994,2]
[392623575,1761754001856,-208.160694,0.00014994,2]
[392623576,1761754001888,-178.399373,0.00014994,2]
[392623577,1761754001916,-151.0,0.00014994,2]
[392623578,1761754001944,-151.0,0.00014994,2]
[392623579,1761754001972,-151.0,0.00014994,2]
[392623580,1761754002000,-151.0,0.00014994,2]
[392623581,1761754002027,-2433.8217815,0.00014994,2]
[392623582,1761754003032,-500.0,0.00014027,2]
[392623583,1761754003059,-435.68797899,0.00014027,2]
[392623584,1761754003086,-500.0,0.00014027,2]
[392623585,1761754003113,-500.0,0.00014027,2]
[392623586,1761754003140,-26479.2654596,0.00014994,2]
[392623587,1761754003167,-977.92,0.00014998,2]
[392623588,1761754003192,-20607.12656141,0.00014999,2]
[392623589,1761754003953,-500.0,0.00014973,2]
[392623590,1761754003982,-1196.11646659,0.00014999,2]
[392623591,1761754004012,-48303.88353341,0.00014999,2]
[392623592,1761754004353,-500.0,0.00014973,2]
[392623593,1761754004380,-47529.18866689,0.00014999,2]
[392623594,1761754004406,-151.0,0.00014999,2]
[392623595,1761754004434,-151.0,0.00014999,2]
[392623596,1761754004460,-151.0,0.00014999,2]
[392623597,1761754004488,-151.0,0.00014999,2]
[392623598,1761754004516,-151.0,0.00014999,2]
[392623599,1761754004542,-151.0,0.00014999,2]
[392623600,1761754004568,-151.0,0.00014999,2]
[392623601,1761754004594,-151.0,0.00014999,2]
[392623602,1761754004620,-462.173378,0.00014999,2]
[392623603,1761754004648,-300.63795511,0.00014999,2]
[392623605,1761754005163,-500.0,0.00014973,2]
[392623606,1761754005188,-500.0,0.00014973,2]
[392623607,1761754005214,-161.53542289,0.00014999,2]
[392623609,1761754005240,-462.173378,0.00014999,2]
[392623610,1761754005266,-462.173378,0.00014999,2]
[392623611,1761754005294,-151.0,0.00014999,2]
[392623612,1761754005320,-151.0,0.00014999,2]
[392623613,1761754005346,-151.0,0.00014999,2]
[392623614,1761754005372,-287.964008,0.00014999,2]
[392623615,1761754005398,-151.0,0.00014999,2]
[392623616,1761754005423,-151.0,0.00014999,2]
[392623617,1761754005449,-151.0,0.00014999,2]
[392623618,1761754005475,-151.0,0.00014999,2]
[392623619,1761754005679,-151.0,0.00014999,2]
[392623620,1761754005707,-151.0,0.00014999,2]
[392623621,1761754005734,-151.0,0.00014999,2]
[392623622,1761754005760,-151.0,0.00014999,2]
[392623623,1761754005789,-151.0,0.00014999,2]
[392623624,1761754005815,-209.650987,0.00014999,2]
[392623625,1761754005843,-977.92,0.00014999,2]
[392623626,1761754005872,-977.92,0.00014999,2]
[392623627,1761754005902,-977.92,0.00014999,2]
[392623628,1761754005927,-977.92,0.00014999,2]
[392623629,1761754005955,-977.92,0.00014999,2]
[392623630,1761754005981,-977.92,0.00014999,2]
[392623631,1761754006006,-977.92,0.00014999,2]
[392623632,1761754006032,-977.92,0.00014999,2]
[392623633,1761754006056,-977.92,0.00014999,2]
[392623634,1761754006084,-151.0,0.00014999,2]
[392623635,1761754006109,-977.92,0.00014999,2]
[392623636,1761754006135,-977.92,0.00014999,2]
[392623637,1761754006160,-977.92,0.00014999,2]
[392623638,1761754006187,-977.92,0.00014999,2]
[392623639,1761754006213,-977.92,0.00014999,2]
[392623640,1761754006240,-151.0,0.00014999,2]
[392623641,1761754006266,-977.92,0.00014999,2]
[392623642,1761754006291,-151.0,0.00014999,2]
[392623643,1761754006318,-151.0,0.00014999,2]
[392623644,1761754006344,-977.92,0.00014999,2]
[392623645,1761754006369,-977.92,0.00014999,2]
[392623646,1761754006394,-977.92,0.00014999,2]
[392623647,1761754006418,-977.92,0.00014999,2]
[392623648,1761754006442,-977.92,0.00014999,2]
[392623649,1761754006466,-977.92,0.00014999,2]
[392623650,1761754006492,-978.02320454,0.00014999,2]
[392623651,1761754006516,-153.156967,0.00014999,2]
[392623652,1761754006542,-151.0,0.00014999,2]
[392623653,1761754006567,-156.701179,0.00014999,2]
[392623654,1761754006592,-151.0,0.00014999,2]
[392623655,1761754006617,-151.0,0.00014999,2]
[392623656,1761754006643,-151.0,0.00014999,2]
[392623657,1761754006668,-151.0,0.00014999,2]
[392623658,1761754006693,-151.0,0.00014999,2]
[392623659,1761754006719,-151.0,0.00014999,2]
[392623660,1761754006744,-151.0,0.00014999,2]
[392623661,1761754006771,-151.0,0.00014999,2]
[392623662,1761754006798,-151.0,0.00014999,2]
[392623663,1761754006825,-151.0,0.00014999,2]
[392623664,1761754006860,-151.0,0.00014999,2]
[392623665,1761754006887,-182.713429,0.00014999,2]
[392623666,1761754006914,-151.0,0.00014999,2]
[392623667,1761754006940,-151.0,0.00014999,2]
[392623668,1761754006965,-151.0,0.00014999,2]
[392623669,1761754006991,-151.0,0.00014999,2]
[392623670,1761754007019,-151.0,0.00014999,2]
[392623671,1761754007044,-151.0,0.00014999,2]
[392623672,1761754007070,-151.0,0.00014999,2]
[392623673,1761754007094,-151.0,0.00014999,2]
[392623674,1761754007120,-151.0,0.00014999,2]
[392623675,1761754007146,-200.377156,0.00014999,2]
[392623676,1761754007174,-151.0,0.00014999,2]
[392623677,1761754007200,-195.181761,0.00014999,2]
[392623678,1761754007227,-151.0,0.00014999,2]
[392623679,1761754007254,-151.0,0.00014999,2]
[392623680,1761754007280,-151.0,0.00014999,2]
[392623681,1761754007306,-151.0,0.00014999,2]
[392623682,1761754007333,-151.0,0.00014999,2]
[392623683,1761754007359,-199.703718,0.00014999,2]
[392623684,1761754007387,-659.204276,0.00014999,2]
[392623685,1761754007416,-659.204276,0.00014999,2]
[392623686,1761754007444,-659.204276,0.00014999,2]
[392623687,1761754007472,-659.204276,0.00014999,2]
[392623688,1761754007501,-659.204276,0.00014999,2]
[392623689,1761754007529,-659.204276,0.00014999,2]
[392623690,1761754007557,-151.0,0.00014999,2]
[392623691,1761754007585,-659.204276,0.00014999,2]
[392623692,1761754007614,-659.204276,0.00014999,2]
[392623693,1761754007645,-311.434676,0.00014999,2]
[392623694,1761754007673,-151.0,0.00014999,2]
[392623695,1761754007701,-311.434676,0.00014999,2]
[392623696,1761754007728,-311.434676,0.00014999,2]
[392623697,1761754007756,-311.434676,0.00014999,2]
[392623698,1761754007783,-151.0,0.00014999,2]
[392623699,1761754007815,-180.06313,0.00014999,2]
[392623700,1761754007843,-190.922773,0.00014999,2]
[392623701,1761754007870,-151.0,0.00014999,2]
[392623702,1761754007900,-151.0,0.00014999,2]
[392623703,1761754007927,-180.06313,0.00014999,2]
[392623704,1761754007954,-190.922773,0.00014999,2]
[392623705,1761754007982,-369.903351,0.00014999,2]
[392623706,1761754008009,-180.06313,0.00014999,2]
[392623707,1761754008038,-190.922773,0.00014999,2]
[392623708,1761754008067,-369.903351,0.00014999,2]
[392623709,1761754008096,-180.06313,0.00014999,2]
[392623710,1761754008126,-369.903351,0.00014999,2]
[392623711,1761754008158,-151.0,0.00014999,2]
[392623712,1761754008186,-190.922773,0.00014999,2]
[392623713,1761754008214,-369.903351,0.00014999,2]
[392623714,1761754008241,-151.0,0.00014999,2]
[392623715,1761754008419,-151.0,0.00014999,2]
[392623716,1761754008458,-151.0,0.00014999,2]
[392623717,1761754008485,-151.0,0.00014999,2]
[392623718,1761754008512,-151.0,0.00014999,2]
[392623719,1761754008538,-245.568528,0.00014999,2]
[392623720,1761754008565,-151.0,0.00014999,2]
[392623721,1761754008591,-153.531697,0.00014999,2]
[392623722,1761754008618,-155.949111,0.00014999,2]
[392623723,1761754008647,-187.47564,0.00014999,2]
[392623724,1761754008675,-151.0,0.00014999,2]
[392623725,1761754008701,-151.0,0.00014999,2]
[392623726,1761754008729,-151.0,0.00014999,2]
[392623727,1761754008756,-2024.0,0.00015,2]
[392623728,1761754008785,-3806.87050757,0.00015,2]
[392623729,1761754009891,-261.43663175,0.00013944,2]
[392623733,1761754051410,-9003.58835626,0.00013944,2]
[392623734,1761754051437,-195.0,0.00013997,2]
[392623735,1761754051465,-151.0,0.0001402,2]
[392623736,1761754051493,-151.0,0.0001402,2]
[392623737,1761754051521,-151.0,0.0001402,2]
[392623738,1761754051548,-151.0,0.0001402,2]
[392623739,1761754051576,-151.0,0.0001402,2]
[392623740,1761754051603,-300.0,0.00014049,2]
[392623741,1761754051631,-9265.02498801,0.0001405,2]
[392623742,1761754051660,-9265.02498801,0.00014156,2]
[392623743,1761754051687,-500.0,0.00014168,2]
[392623744,1761754051716,-500.0,0.00014168,2]
[392623745,1761754051745,-500.0,0.00014168,2]
[392623746,1761754051773,-500.0,0.00014168,2]
[392623747,1761754051802,-500.0,0.00014168,2]
[392623748,1761754051831,-500.0,0.00014168,2]
[392623749,1761754051859,-500.0,0.00014168,2]
[392623750,1761754051886,-578.20924308,0.00014168,2]
[392623751,1761754051913,-500.0,0.00014168,2]
[392623752,1761754051944,-500.0,0.00014168,2]
[392623753,1761754051972,-500.0,0.00014168,2]
[392623754,1761754052002,-465.94460227,0.00014168,2]
[392623755,1761754052034,-500.0,0.00014168,2]
[392623756,1761754052062,-500.0,0.00014168,2]
[392623757,1761754052091,-416.78515512,0.00014168,2]